Department Family,Entity,Date,Expenses Type,Expense Area,Supplier,Transaction Number,  Total  
Department of Health,The Christie NHS Foundation Trust,03/05/2018,Drugs,Drugs,ALCURA UK LIMITED,582336,"94,667.37"
Department of Health,The Christie NHS Foundation Trust,17/05/2018,PET Scans - Mar-18,Christie Medical Physics,ALLIANCE MEDICAL LTD,581580,"46,440.00"
Department of Health,The Christie NHS Foundation Trust,03/05/2018,Drugs,Christie Medical Physics,ALLIANCE MEDICAL RADIOPHARMACY LIMITED,580979,"39,074.88"
Department of Health,The Christie NHS Foundation Trust,10/05/2018,Drugs,Drugs,BAXTER HEALTHCARE LTD,581267,"361,684.90"
Department of Health,The Christie NHS Foundation Trust,03/05/2018,Drugs,Drugs,BAXTER HEALTHCARE LTD,580690,"275,636.88"
Department of Health,The Christie NHS Foundation Trust,17/05/2018,Drugs,Drugs,BAXTER HEALTHCARE LTD,582232,"30,576.00"
Department of Health,The Christie NHS Foundation Trust,17/05/2018,Drugs,Drugs,BAXTER HEALTHCARE LTD,582234,"26,695.08"
Department of Health,The Christie NHS Foundation Trust,17/05/2018,Drugs,Drugs,BAXTER HEALTHCARE LTD,582230,"409,189.27"
Department of Health,The Christie NHS Foundation Trust,24/05/2018,Drugs,Drugs,BAXTER HEALTHCARE LTD,582506,"360,890.84"
Department of Health,The Christie NHS Foundation Trust,01/05/2018,Drugs,Drugs,BAXTER HEALTHCARE LTD,582468,"336,207.60"
Department of Health,The Christie NHS Foundation Trust,18/05/2018,Drugs,Drugs,BAXTER HEALTHCARE LTD,582925,"470,575.73"
Department of Health,The Christie NHS Foundation Trust,31/05/2018,Drugs,Drugs,BAXTER HEALTHCARE LTD,583578,"415,424.51"
Department of Health,The Christie NHS Foundation Trust,18/05/2018,Drugs,Drugs,BAXTER HEALTHCARE LTD,583583,"427,547.59"
Department of Health,The Christie NHS Foundation Trust,31/05/2018,Drugs,Drugs,BOLTON NHS FOUNDATION TRUST,578979,"32,160.00"
Department of Health,The Christie NHS Foundation Trust,10/05/2018,CQC Membership Fee,Quality & Standards,CARE QUALITY COMMISSION,581584,"185,689.00"
Department of Health,The Christie NHS Foundation Trust,24/05/2018,PET Scans - Mar-18,Christie Medical Physics,CENTRAL MCR  UNIV HOSP NHS FOUNDATION TR,581464,"111,070.00"
Department of Health,The Christie NHS Foundation Trust,03/05/2018,Medical Equipment Maintenance Contract,Clinical Support & Specialist Surgery,CPP FACILITIES LLP,580808,"172,856.77"
Department of Health,The Christie NHS Foundation Trust,31/05/2018,Medical Equipment Maintenance Contract,Clinical Support & Specialist Surgery,CPP FACILITIES LLP,583588,"198,671.43"
Department of Health,The Christie NHS Foundation Trust,31/05/2018,Medical Equipment Maintenance Contract,Clinical Support & Specialist Surgery,CPP FACILITIES LLP,583596,"203,716.52"
Department of Health,The Christie NHS Foundation Trust,31/05/2018,Medical Equipment Maintenance Contract,Clinical Support & Specialist Surgery,CPP FACILITIES LLP,583498,"-172,856.77"
Department of Health,The Christie NHS Foundation Trust,31/05/2018,Medical Equipment Maintenance Contract,Clinical Support & Specialist Surgery,CPP FACILITIES LLP,583494,"-172,856.77"
Department of Health,The Christie NHS Foundation Trust,31/05/2018,Medical Equipment Maintenance Contract,Clinical Support & Specialist Surgery,CPP FACILITIES LLP,583592,"188,690.45"
Department of Health,The Christie NHS Foundation Trust,31/05/2018,Medical Equipment Maintenance Contract,Clinical Support & Specialist Surgery,CPP FACILITIES LLP,583495,"-172,856.77"
Department of Health,The Christie NHS Foundation Trust,17/05/2018,Software Licences,Quality & Standards,DATIX LTD,581975,"32,526.70"
Department of Health,The Christie NHS Foundation Trust,24/05/2018,Drugs,Drugs,EAST CHESHIRE NHS TRUST,583757,"101,778.24"
Department of Health,The Christie NHS Foundation Trust,17/05/2018,Energy Contract PBT  Apr-18,Network Services,EDF ENERGY,582751,"33,878.34"
Department of Health,The Christie NHS Foundation Trust,03/05/2018,Linear Accelerator Development,Capital,ELEKTA  LTD,580861,"199,880.95"
Department of Health,The Christie NHS Foundation Trust,10/05/2018,Maintenance agreement,Cancer Networked Services,ELEKTA  LTD,581427,"1,048,349.19"
Department of Health,The Christie NHS Foundation Trust,03/05/2018,Medical Equipment,Clinical Support & Specialist Surgery,GETINGE UK LIMITED,579477,"22,633.80"
Department of Health,The Christie NHS Foundation Trust,17/05/2018,Computer Equipment,Capital,HP INC.UK LIMITED,582240,"34,131.17"
Department of Health,The Christie NHS Foundation Trust,31/05/2018,Computer Equipment,Finance & Business Development,HP INC.UK LIMITED,583546,"76,408.32"
Department of Health,The Christie NHS Foundation Trust,10/05/2018,IT Equipment,Capital,INSIGHT DIRECT (UK) LTD,580528,"105,950.00"
Department of Health,The Christie NHS Foundation Trust,31/05/2018,Proton Beam Development (PBT),Capital,INTERSERVE CONSTRUCTION LTD,584307,"1,507,919.65"
Department of Health,The Christie NHS Foundation Trust,08/05/2018,Rates 18/19,Estates & Facilities,M/CR CITY COUNCIL (RATES) DD,582769,"76,032.00"
Department of Health,The Christie NHS Foundation Trust,17/05/2018,Building Works,Capital,MEDWAY HEATING BOLTON LTD,582291,"173,312.78"
Department of Health,The Christie NHS Foundation Trust,31/05/2018,Macmillan Service May-18,Network Services,MID CHESHIRE HOSPITALS NHS FT,583523,"45,375.83"
Department of Health,The Christie NHS Foundation Trust,03/05/2018,Macmillan Service Apr-18,Network Services,MID CHESHIRE HOSPITALS NHS FT,580334,"45,375.83"
Department of Health,The Christie NHS Foundation Trust,10/05/2018,Drugs,Drugs,MID CHESHIRE HOSPITALS NHS FT,579964,"94,911.47"
Department of Health,The Christie NHS Foundation Trust,10/05/2018,Drugs,Drugs,MID CHESHIRE HOSPITALS NHS FT,579966,"71,859.47"
Department of Health,The Christie NHS Foundation Trust,10/05/2018,GDPR Consultancy,Finance & Business Development,NCC GROUP SECURITY SERVICES LIMITED,579089,"33,350.00"
Department of Health,The Christie NHS Foundation Trust,15/05/2018,Blood Products,Network Services,NHS BLOOD AND TRANSPLANT,583619,"182,293.80"
Department of Health,The Christie NHS Foundation Trust,24/05/2018,Blood Products,Network Services,NHS BLOOD AND TRANSPLANT,580898,"34,418.82"
Department of Health,The Christie NHS Foundation Trust,24/05/2018,Blood Products,Network Services,NHS BLOOD AND TRANSPLANT,580905,"-26,912.36"
Department of Health,The Christie NHS Foundation Trust,24/05/2018,Blood Products,Network Services,NHS BLOOD AND TRANSPLANT,583351,"-29,578.64"
Department of Health,The Christie NHS Foundation Trust,15/05/2018,NHS Litigation (NHSLA),Finance & Business Development,NHS LITIGATION AUTHORITY,583650,"93,092.10"
Department of Health,The Christie NHS Foundation Trust,03/05/2018,Stock for all Wards & Departments,All Wards and Departments,NHS SUPPLY CHAIN,582193,"42,087.50"
Department of Health,The Christie NHS Foundation Trust,10/05/2018,Stock for all Wards & Departments,All Wards and Departments,NHS SUPPLY CHAIN,582673,"60,987.71"
Department of Health,The Christie NHS Foundation Trust,31/05/2018,Stock for all Wards & Departments,All Wards and Departments,NHS SUPPLY CHAIN,584348,"75,783.39"
Department of Health,The Christie NHS Foundation Trust,17/05/2018,Stock for all Wards & Departments,All Wards and Departments,NHS SUPPLY CHAIN,583316,"45,734.65"
Department of Health,The Christie NHS Foundation Trust,31/05/2018,Medical Equipment,Clinical Support & Specialist Surgery,NHS SUPPLY CHAIN,583839,"47,013.00"
Department of Health,The Christie NHS Foundation Trust,24/05/2018,Stock for all Wards & Departments,All Wards and Departments,NHS SUPPLY CHAIN,583889,"53,188.89"
Department of Health,The Christie NHS Foundation Trust,24/05/2018,Proton Beam Development (PBT),Capital,ONCOLOGY IMAGING SYSTEMS LTD,582866,"201,063.60"
Department of Health,The Christie NHS Foundation Trust,17/05/2018,Proton Beam Development (PBT),Capital,ONCOLOGY IMAGING SYSTEMS LTD,581729,"55,800.00"
Department of Health,The Christie NHS Foundation Trust,24/05/2018,Project Costs,Capital,PHILIPS HEALTHCARE,581483,"36,499.75"
Department of Health,The Christie NHS Foundation Trust,10/05/2018,Medical Equipment,Capital,PURE AUDIO VISUAL LTD,582555,"130,310.98"
Department of Health,The Christie NHS Foundation Trust,03/05/2018,IT Equipment,GM Cancer Vanguard,ROYAL MARSDEN NHS FT,581583,"40,000.00"
Department of Health,The Christie NHS Foundation Trust,10/05/2018,Software Licences,Trust Administration,SAP UK LTD,580200,"76,073.00"
Department of Health,The Christie NHS Foundation Trust,10/05/2018,Software Licences,Trust Administration,SOFTCAT PLC,579913,"75,000.00"
Department of Health,The Christie NHS Foundation Trust,17/05/2018,Medical Equipment,Capital,STRYKER UK LTD,583346,"57,684.00"
Department of Health,The Christie NHS Foundation Trust,31/05/2018,Medway System Support - Apr-18,Finance & Business Development,SYSTEM C HEALTHCARE,582871,"23,680.00"
Department of Health,The Christie NHS Foundation Trust,10/05/2018,Medway System Support - Mar-18,Finance & Business Development,SYSTEM C HEALTHCARE,580893,"23,680.00"
Department of Health,The Christie NHS Foundation Trust,31/05/2018,Drugs,Drugs,THE CHRISTIE CLINIC (HCA),565279,"34,520.00"
Department of Health,The Christie NHS Foundation Trust,31/05/2018,Drugs,Drugs,THE CHRISTIE CLINIC (HCA),578118,"30,420.00"
Department of Health,The Christie NHS Foundation Trust,31/05/2018,Drugs,Drugs,THE CHRISTIE CLINIC (HCA),583270,"30,960.00"
Department of Health,The Christie NHS Foundation Trust,10/05/2018,Drugs,Drugs,THE CHRISTIE CLINIC (HCA),580583,"30,960.00"
Department of Health,The Christie NHS Foundation Trust,31/05/2018,Patient Testing Service ,Clinical Support & Specialist Surgery,THE CHRISTIE PATHOLOGY PARTNERSHIP LLP,583599,"397,045.23"
Department of Health,The Christie NHS Foundation Trust,31/05/2018,Patient Testing Service ,Clinical Support & Specialist Surgery,THE CHRISTIE PATHOLOGY PARTNERSHIP LLP,583604,"428,663.32"
Department of Health,The Christie NHS Foundation Trust,31/05/2018,Patient Testing Service ,Clinical Support & Specialist Surgery,THE CHRISTIE PATHOLOGY PARTNERSHIP LLP,583491,"-363,727.73"
Department of Health,The Christie NHS Foundation Trust,31/05/2018,Patient Testing Service ,Clinical Support & Specialist Surgery,THE CHRISTIE PATHOLOGY PARTNERSHIP LLP,583629,"418,047.35"
Department of Health,The Christie NHS Foundation Trust,31/05/2018,Patient Testing Service ,Clinical Support & Specialist Surgery,THE CHRISTIE PATHOLOGY PARTNERSHIP LLP,583492,"-363,727.73"
Department of Health,The Christie NHS Foundation Trust,18/05/2018,Drugs,Drugs,THE CHRISTIE PHARMACY LIMITED,581935,"-34,956.02"
Department of Health,The Christie NHS Foundation Trust,18/05/2018,Drugs,Drugs,THE CHRISTIE PHARMACY LIMITED,583659,"129,762.07"
Department of Health,The Christie NHS Foundation Trust,18/05/2018,Drugs,Drugs,THE CHRISTIE PHARMACY LIMITED,583657,"2,136,551.00"
Department of Health,The Christie NHS Foundation Trust,18/05/2018,Drugs,Drugs,THE CHRISTIE PHARMACY LIMITED,583658,"460,819.99"
Department of Health,The Christie NHS Foundation Trust,24/05/2018,Anaesthetics - Apr-18,Clinical Support & Specialist Surgery,UNI HOSP OF SOUTH MANCHESTER NHS FT,582453,"27,148.17"
Department of Health,The Christie NHS Foundation Trust,10/05/2018,Clinical Nurse Recharge Jan-Mar-18,Clinical Support & Specialist Surgery,UNI HOSP OF SOUTH MANCHESTER NHS FT,580345,"28,211.69"
Department of Health,The Christie NHS Foundation Trust,17/05/2018,Critical Care - Apr-18,Clinical Support & Specialist Surgery,UNI HOSP OF SOUTH MANCHESTER NHS FT,582469,"29,638.25"
Department of Health,The Christie NHS Foundation Trust,10/05/2018,Critical Care - Mar-18,Clinical Support & Specialist Surgery,UNI HOSP OF SOUTH MANCHESTER NHS FT,580331,"29,638.25"
Department of Health,The Christie NHS Foundation Trust,10/05/2018,Anaesthetics - Mar-18,Clinical Support & Specialist Surgery,UNI HOSP OF SOUTH MANCHESTER NHS FT,580333,"27,148.17"
Department of Health,The Christie NHS Foundation Trust,24/05/2018,Consultancy,Programme Management Office,UNIQUE HEALTH SOLUTIONS,583745,"27,000.00"
Department of Health,The Christie NHS Foundation Trust,31/05/2018,Proton Beam Development (PBT),Network Services,VARIAN MEDICAL SYSTEMS UK LTD,584092,"213,408.00"
Department of Health,The Christie NHS Foundation Trust,31/05/2018,Christie @ Wigan - May-18,Network Services,WRIGHTINGTON WIGAN AND LEIGH NHS FT,584119,"231,448.00"
Department of Health,The Christie NHS Foundation Trust,17/05/2018,Christie @ Wigan - Apr-18,Network Services,WRIGHTINGTON WIGAN AND LEIGH NHS FT,582280,"231,448.00"
